bitfinex/quotes_ETHUSD_20240910
["timestamp","ask_amount","ask_price","bid_price","bid_amount"]
[1725998221587,0.10478606,2385.9,2385.2,0.08383277]
[1725998221588,2.3812,2385.8,2385.2,0.08383277]
[1725998222526,8.15133328,2386.1,2385.0,7.38]
[1725998222527,2.2755,2385.6,2385.0,7.38]
[1725998222721,2.2755,2385.6,2384.7,3.96030328]
[1725998223032,2.2755,2385.6,2384.6,0.86618187]
[1725998223033,2.2755,2385.6,2384.9,3.96030328]
[1725998223246,2.2755,2385.6,2385.0,0.6338359]
[1725998223534,2.2755,2385.6,2384.7,4.85316975]
[1725998223535,2.3802949,2385.6,2384.7,4.85316975]
[1725998223701,2.3802949,2385.6,2384.8,0.86634936]
[1725998223702,2.2755,2385.6,2384.8,0.86634936]
[1725998223887,2.2755,2385.6,2384.9,0.55]
[1725998224291,2.59469823,2385.5,2384.7,0.0266846]
[1725998225033,6.55500151,2385.5,2384.7,0.0266846]
[1725998225234,2.3257,2385.4,2384.7,0.0266846]
[1725998225536,2.3257,2385.2,2384.7,0.0266846]
[1725998227496,0.10482041,2385.1,2384.7,0.0266846]
[1725998227700,2.4402,2385.1,2384.7,0.0266846]
[1725998228301,2.4402,2385.1,2384.7,0.11053542]
[1725998228601,2.4402,2385.1,2384.8,0.55]
[1725998228833,2.4402,2385.1,2384.9,0.54593114]
[1725998229002,2.4402,2385.1,2384.9,0.08384727]
[1725998229748,2.4402,2385.1,2384.8,0.08384943]
[1725998230617,2.4402,2385.4,2384.9,4.51030328]
[1725998230823,2.4402,2385.4,2385.0,3.08383921]
[1725998231033,2.4402,2385.4,2385.1,1.30941425]
[1725998231249,2.4402,2385.4,2385.2,0.08383856]
[1725998233548,2.422,2385.6,2385.2,0.08383856]
[1725998235528,2.344,2385.8,2385.3,0.55]
[1725998235773,2.344,2385.8,2385.4,0.44721191]
[1725998237649,7.49,2385.9,2385.4,0.44721191]
[1725998237851,2.3354,2386.3,2385.7,3.96030328]
[1725998238065,2.3354,2386.3,2385.8,3.08380792]
[1725998238272,2.3354,2386.3,2385.9,1.25441112]
[1725998238569,2.3354,2386.3,2386.0,0.08380825]
[1725998240981,2.4814,2386.5,2386.0,0.08380825]
[1725998243170,2.4814,2386.5,2386.1,3.96030328]
[1725998243356,0.0266862,2386.6,2386.2,0.48821174]
[1725998243563,0.0266862,2386.6,2386.3,0.08379775]
[1725998244878,0.0266862,2386.6,2386.0,3.0]
[1725998244879,0.0266862,2386.6,2386.1,0.08379773]
[1725998245433,0.0266862,2386.6,2386.2,0.55]
[1725998245644,0.0266862,2386.6,2386.5,3.96030328]
[1725998245851,0.0266862,2386.6,2386.5,5.23430258]
[1725998246351,0.0266862,2386.6,2386.5,8.23430258]
[1725998246750,0.0266862,2386.6,2386.5,0.640219]
[1725998246946,0.0266862,2386.6,2386.1,3.0]
[1725998247276,0.0266862,2386.6,2386.2,0.0837978]
[1725998247660,2.446,2386.5,2386.2,0.0837978]
[1725998248159,2.446,2386.5,2385.9,0.70441112]
[1725998248563,2.446,2386.5,2386.0,0.08380496]
[1725998249456,2.446,2386.5,2385.8,0.08380743]
[1725998251386,2.446,2386.5,2385.7,5.2746]
[1725998251687,2.446,2386.5,2385.8,0.55]
[1725998251845,2.446,2386.5,2385.9,0.58246]
[1725998255420,0.10475967,2386.4,2385.8,3.0]
[1725998255581,0.10475967,2386.4,2385.5,5.3171]
[1725998255582,2.406,2386.3,2385.5,5.3171]
[1725998255781,2.406,2386.3,2385.6,0.08381612]
[1725998256091,2.406,2386.3,2385.6,1.05627645]
[1725998256431,2.406,2386.3,2385.6,8.01657973]
[1725998256798,2.406,2386.3,2385.7,0.55]
[1725998257015,2.6281564,2386.6,2385.9,2.4168]
[1725998257217,2.6281564,2386.6,2386.0,0.08380781]
[1725998258115,2.6281564,2386.6,2385.9,0.30506102]
[1725998258633,2.5233862,2386.6,2386.0,0.0838068]
[1725998258993,2.5233862,2386.6,2385.9,0.30506102]
[1725998260339,4.0650606,2386.5,2385.9,0.08381002]
[1725998260490,2.2867,2386.4,2385.9,0.08381002]
[1725998261447,2.2867,2386.4,2385.9,2.3171]
[1725998261600,0.0266862,2386.6,2385.9,2.3171]
[1725998261601,0.0266862,2386.6,2386.2,3.96030328]
[1725998261803,0.0266862,2386.6,2386.3,0.47982451]
[1725998262034,0.0266862,2386.6,2386.3,0.08379418]
[1725998262338,0.0266862,2386.6,2386.3,3.08378979]
[1725998262510,0.0266862,2386.6,2386.4,3.96030328]
[1725998262842,0.0266862,2386.6,2386.5,0.08379263]
[1725998263136,0.0266862,2386.6,2386.5,2.80530222]
[1725998263349,0.0266862,2386.6,2386.5,6.35530222]
[1725998264700,0.0266862,2386.6,2386.5,3.48820222]
[1725998264897,0.0266862,2386.6,2386.5,0.40440959]
[1725998265140,0.0266862,2386.6,2386.5,0.48819985]
[1725998266112,0.0266862,2386.6,2385.8,3.96030328]
[1725998266319,0.0266862,2386.6,2385.9,0.08380547]
[1725998266519,0.0266862,2386.6,2386.0,6.43140328]
[1725998266730,0.0266862,2386.6,2386.1,0.08379713]
[1725998266937,0.0266862,2386.6,2386.1,0.73531717]
[1725998267415,0.0266862,2386.6,2386.2,0.55]
[1725998267614,0.0266862,2386.6,2386.3,0.08379357]
[1725998268142,0.0266862,2386.6,2386.3,0.08378798]
[1725998268445,0.0266862,2386.6,2386.2,0.08379456]
[1725998268652,0.0266862,2386.6,2386.2,0.70443602]
[1725998268809,0.0266862,2386.6,2386.3,0.08379816]
[1725998271056,0.0266862,2386.6,2386.3,3.08379816]
[1725998271352,0.0266862,2386.6,2386.4,6.81260328]
[1725998271509,0.0266862,2386.6,2386.5,0.08378292]
[1725998271707,0.0266862,2386.6,2386.5,1.62342154]
[1725998274040,0.0266862,2386.6,2386.4,0.08378507]
[1725998274234,0.0266862,2386.6,2386.3,0.08379839]
[1725998274749,0.0266862,2386.6,2386.1,0.08380332]
[1725998275126,2.2657,2386.5,2386.1,0.08380332]
[1725998275310,2.2657,2386.5,2385.6,6.43390328]
[1725998275511,2.2657,2386.5,2385.7,1.86620732]
[1725998275717,2.2657,2386.5,2385.8,0.08380589]
[1725998276547,2.2657,2386.5,2385.9,0.55]
[1725998276751,2.2657,2386.5,2386.0,0.08380589]
[1725998278849,2.37045772,2386.4,2385.7,0.86727198]
[1725998279147,2.37045772,2386.4,2385.4,5.18986901]
[1725998279148,2.2657,2386.2,2385.4,4.32368714]
[1725998279390,2.2657,2386.2,2385.5,0.55]
[1725998279518,2.2657,2386.2,2385.6,0.48736871]
[1725998280263,2.2657,2386.2,2385.5,0.55]
[1725998280264,2.2657,2386.0,2385.4,0.36338386]
[1725998280553,2.2657,2386.0,2385.2,0.86618187]
[1725998280765,2.2657,2386.0,2385.2,0.91677542]
[1725998281066,11.45030328,2386.3,2385.0,3.96030328]
[1725998281067,0.10478182,2385.9,2385.0,3.96030328]
[1725998281361,2.3308,2385.8,2385.1,0.74623503]
[1725998281523,2.3308,2385.8,2385.1,4.66310055]
[1725998281717,2.3308,2385.8,2385.2,0.94895857]
[1725998282922,2.3308,2385.8,2385.3,0.55]
[1725998283139,2.3308,2385.8,2385.3,0.63382945]
[1725998283628,2.3672,2386.2,2385.6,3.96030328]
[1725998283829,2.3672,2386.5,2385.8,3.96030328]
[1725998284081,2.3672,2386.5,2386.0,3.96030328]
[1725998284241,0.0266862,2386.6,2386.1,0.63380102]
[1725998284442,0.0266862,2386.6,2386.1,1.28180166]
[1725998285235,0.0266862,2386.6,2386.1,4.28180166]
[1725998285736,0.0266862,2386.6,2386.1,3.73180166]
[1725998285944,0.0266862,2386.6,2386.1,0.73180166]
[1725998286236,0.0266862,2386.6,2386.2,0.37318017]
[1725998287470,0.0266862,2386.6,2386.3,0.08380496]
[1725998287841,2.3656,2386.5,2386.3,0.08380496]
[1725998288043,2.3656,2386.5,2386.2,0.08380383]
[1725998288785,2.3656,2386.5,2386.0,0.08380463]
[1725998289445,0.0266862,2386.6,2386.1,0.55]
[1725998289656,0.0266862,2386.6,2386.2,0.08380089]
[1725998290343,0.0266862,2386.6,2386.3,0.55]
[1725998290559,0.0266862,2386.6,2386.4,0.08379627]
[1725998290769,0.0266862,2386.6,2386.4,0.54320623]
[1725998291781,0.0266862,2386.6,2386.5,0.55]
[1725998292186,0.0266862,2386.6,2386.4,0.54320055]
[1725998292461,0.0266862,2386.6,2386.4,0.08379059]
[1725998293371,0.0266862,2386.6,2386.2,0.08379687]
[1725998293594,0.0266862,2386.6,2386.3,0.55]
[1725998293802,0.0266862,2386.6,2386.4,0.08379688]
[1725998294791,0.0266862,2386.6,2386.3,0.55]
[1725998295105,0.0266862,2386.6,2386.4,0.0837969]
[1725998296507,0.0266862,2386.6,2386.3,0.55]
[1725998296705,0.0266862,2386.6,2386.3,0.43879702]
[1725998298884,0.0266862,2386.6,2386.3,0.355]
[1725998299079,2.4769,2386.5,2386.3,0.355]
[1725998299280,2.4769,2386.5,2386.1,3.08379713]
[1725998299513,2.4769,2386.5,2385.8,2.71799379]
[1725998299717,2.4769,2386.5,2385.9,1.00022808]
[1725998299873,2.4769,2386.5,2385.9,0.8219538]
[1725998300829,2.4769,2386.5,2386.0,0.91611383]
[1725998301115,0.0266862,2386.6,2386.1,0.63380329]
[1725998302216,0.0266862,2386.6,2386.1,2.95960329]
[1725998302412,0.0266862,2386.6,2386.2,0.69199066]
[1725998302660,0.0266862,2386.6,2386.3,0.63379829]
[1725998303977,0.0266862,2386.6,2386.3,0.55]
[1725998304584,2.3314,2386.5,2386.3,0.55]
[1725998306375,0.0266862,2386.6,2386.3,0.63380464]
[1725998306575,0.0266862,2386.6,2386.4,0.45941079]
[1725998306743,0.0266862,2386.6,2386.5,0.63379563]
[1725998307694,0.0266862,2386.6,2386.5,3.63379563]
[1725998308157,0.0266862,2386.6,2386.5,0.63379563]
[1725998313994,0.0266862,2386.6,2386.5,3.63379563]
[1725998314296,0.0266862,2386.6,2386.5,4.6794466]
[1725998315985,2.4349862,2386.6,2386.0,3.7772334]
[1725998316147,2.4349862,2386.6,2386.1,3.0]
[1725998316485,0.10475505,2386.5,2386.0,3.0]
[1725998316660,0.10475505,2386.5,2385.9,3.73814912]
[1725998316661,2.4083,2386.4,2385.9,3.73814912]
[1725998316858,2.4083,2386.4,2386.0,3.45762784]
[1725998317077,2.4083,2386.4,2386.0,0.45762784]
[1725998318160,2.4083,2386.4,2386.1,0.55]
[1725998320768,2.5225862,2386.6,2386.1,0.55]
[1725998321297,2.5225862,2386.6,2386.1,0.9706877]
[1725998323290,2.5225862,2386.6,2386.1,1.0544946]
[1725998329101,0.0266862,2386.6,2386.1,1.0544946]
[1725998329714,0.0266862,2386.6,2386.2,0.91820302]
[1725998329919,0.0266862,2386.6,2386.3,0.63380262]
[1725998330813,0.0266862,2386.6,2386.3,0.55]
[1725998331113,0.0266862,2386.6,2386.3,0.87959974]
[1725998331517,0.0266862,2386.6,2386.3,0.55]
[1725998332990,0.0266862,2386.6,2386.4,4.04410639]
[1725998333191,0.0266862,2386.6,2386.5,0.55]
[1725998333421,0.0266862,2386.6,2386.5,3.55]
[1725998334329,0.0266862,2386.6,2386.5,4.4678364]
[1725998334480,0.0266862,2386.6,2386.5,5.89778547]
[1725998335379,0.0266862,2386.6,2386.5,9.85808875]
[1725998337228,0.0266862,2386.6,2386.5,9.85684777]
[1725998341031,0.0266862,2386.6,2386.5,9.85675784]
[1725998342119,0.0266862,2386.6,2386.5,8.94025235]
[1725998343189,0.0266862,2386.6,2386.3,4.60834011]
[1725998343190,0.0266862,2386.6,2386.3,0.86618187]
[1725998343391,2.3383,2386.5,2385.8,2.24094011]
[1725998343670,2.3383,2386.5,2385.9,5.82679829]
[1725998343931,2.3383,2386.5,2386.0,0.91650132]
[1725998344938,2.3383,2386.5,2386.1,0.63381183]
[1725998345143,2.3383,2386.5,2386.2,0.9161175]
[1725998345303,0.0266862,2386.6,2386.3,4.59410757]
[1725998345502,0.0266862,2386.6,2386.4,0.55]
[1725998345703,0.0266862,2386.6,2386.5,0.08379843]
[1725998345944,0.0266862,2386.6,2386.5,0.63379843]
[1725998346500,0.0266862,2386.6,2386.5,4.59410171]
[1725998346808,0.0266862,2386.6,2386.5,8.50990412]
[1725998348300,0.0266854,2387.1,2386.5,12.26472308]
[1725998348498,0.0266854,2387.1,2387.0,3.96030328]
[1725998348741,0.0266854,2387.1,2387.0,4.51030328]
[1725998348896,0.0266854,2387.1,2387.0,7.51030328]
[1725998349097,0.0266854,2387.1,2387.0,8.26971102]
[1725998350109,0.0266854,2387.1,2387.0,10.63621102]
[1725998350307,0.0266854,2387.1,2387.0,8.26971102]
[1725998350538,0.0266854,2387.1,2387.0,4.30940774]
[1725998351204,0.0266854,2387.1,2387.0,1.30940774]
[1725998351406,0.0266854,2387.1,2387.0,4.30940774]
[1725998351600,0.0266854,2387.1,2387.0,1.30940774]
[1725998352536,0.0266854,2387.1,2386.6,4.13549761]
[1725998352537,0.0266854,2387.1,2386.7,0.08377723]
[1725998352743,0.0266854,2387.1,2386.7,3.08377723]
[1725998352929,0.0266854,2387.1,2386.8,3.0]
[1725998353320,0.0266854,2387.1,2386.7,3.08377723]
[1725998353715,0.0266854,2387.1,2386.8,0.55]
[1725998355350,0.0266854,2387.1,2386.8,1.39996738]
[1725998356119,0.13141822,2387.1,2386.8,1.39996738]
[1725998356309,0.0266854,2387.1,2386.8,1.39996738]
[1725998356755,0.13141825,2387.1,2386.8,1.39996738]
[1725998356956,0.0266854,2387.1,2386.8,1.39996738]
[1725998357830,0.0266854,2387.1,2386.9,0.44837446]
[1725998358038,0.0266854,2387.1,2387.0,4.51030328]
[1725998358223,0.0266854,2387.1,2387.0,0.63377828]
[1725998358445,0.0266854,2387.1,2387.0,0.55]
[1725998359022,0.0266854,2387.1,2387.0,0.63378531]
[1725998359218,0.0266854,2387.1,2387.0,1.22302835]
[1725998359923,0.0266854,2387.1,2387.0,5.18333163]
[1725998361279,0.0266854,2387.1,2387.0,10.49823163]
[1725998362259,0.0266854,2387.1,2387.0,11.4068718]
[1725998362674,0.0266854,2387.1,2387.0,12.2702761]
[1725998363461,0.0266854,2387.1,2387.0,11.4068718]
[1725998363669,0.0266854,2387.1,2387.0,11.32308649]
[1725998363828,0.0266854,2387.1,2387.0,8.09954632]
[1725998364962,0.0266854,2387.1,2387.0,8.18331402]
[1725998366450,0.0266854,2387.1,2387.0,8.18331407]
[1725998367653,5.4e-06,2387.1,2387.0,11.46728129]
[1725998368057,5.4e-06,2387.1,2387.0,12.33068559]
[1725998368628,0.0266854,2387.6,2387.0,11.46728129]
[1725998368876,0.0266854,2387.6,2387.4,6.42440328]
[1725998369044,0.0266854,2387.6,2387.5,0.63375007]
[1725998369222,0.0266854,2387.6,2387.5,3.63375007]
[1725998369935,0.0266854,2387.6,2387.5,3.55]
[1725998370132,0.0266854,2387.6,2387.5,4.6311905]
[1725998370530,0.0266854,2387.6,2387.5,4.54744033]
[1725998371091,0.0266854,2387.6,2387.5,4.08119116]
[1725998371241,0.0266854,2387.6,2387.5,3.08375083]
[1725998371577,0.0266854,2387.6,2387.0,0.58924304]
[1725998371869,0.0266854,2387.6,2387.0,4.54954632]
[1725998372953,0.0266854,2387.6,2387.1,0.55]
[1725998373254,2.4595,2387.5,2387.2,0.0837654]
[1725998373580,2.4595,2387.5,2387.3,0.55]
[1725998373778,2.4595,2387.5,2387.2,0.55]
[1725998374006,2.4595,2387.5,2387.2,1.35995463]
[1725998375671,0.0266854,2387.6,2387.3,0.08376748]
[1725998375873,0.0266854,2387.6,2387.4,0.55]
[1725998376074,0.0266854,2387.6,2387.5,0.08375683]
[1725998376370,0.0266854,2387.6,2387.5,0.63375683]
[1725998376573,0.0266854,2387.6,2387.5,1.05213251]
[1725998376786,0.0266854,2387.6,2387.5,0.55]
[1725998376986,0.0266854,2387.6,2387.4,0.55]
[1725998377233,0.0266854,2387.6,2387.4,0.0837653]
[1725998377407,0.0266854,2387.6,2387.5,0.55]
[1725998379404,2.4452,2387.5,2386.8,1.36196828]
[1725998379643,3.98698868,2387.6,2386.4,8.74288668]
[1725998379644,2.4452,2387.3,2386.4,8.74288668]
[1725998379857,2.4452,2387.1,2386.5,1.2024091]
[1725998380344,2.4452,2386.9,2386.2,0.43817817]
[1725998380506,0.10474972,2386.8,2386.2,0.43817817]
[1725998380707,0.10474972,2386.8,2386.0,9.7978]
[1725998381050,2.54994782,2386.9,2386.1,0.08379826]
[1725998381200,2.4452,2386.9,2386.1,1.15829852]
[1725998381400,2.3452,2386.9,2386.1,1.15829852]
[1725998381845,0.10474775,2386.8,2386.1,4.07450026]
[1725998382146,0.10474775,2386.8,2386.2,0.0837982]
[1725998382848,0.10474775,2386.8,2386.1,1.07450026]
[1725998383030,4.06505103,2386.8,2385.7,2.5258854]
[1725998383237,0.10476089,2386.7,2385.7,2.5258854]
[1725998383401,0.10476089,2386.7,2385.7,0.0266854]
[1725998384120,3.96030328,2386.6,2385.7,0.0266854]
[1725998384323,3.96030328,2386.4,2385.7,0.0266854]
[1725998384506,2.4625,2386.1,2385.7,0.0266854]
[1725998384718,2.4625,2385.9,2385.7,0.0266854]
[1725998384918,2.56728814,2386.2,2385.7,0.0266854]
[1725998385144,0.10477662,2386.1,2385.7,0.0266854]
[1725998386025,0.10477662,2386.1,2385.7,0.5766854]
[1725998386333,0.10477662,2386.1,2385.7,0.0266854]
[1725998388646,2.3961,2386.0,2385.7,0.0266854]
[1725998388842,0.10479012,2385.9,2385.7,0.0266854]
[1725998389046,6.35640328,2385.8,2385.7,0.0266854]
[1725998390533,10.65267885,2385.8,2385.7,0.0266854]
[1725998391494,2.50091557,2385.8,2385.7,0.0266854]
[1725998391859,2.3961,2385.8,2385.7,0.0266854]
[1725998392074,2.50090919,2385.8,2385.7,0.0266854]
[1725998392447,2.3961,2385.8,2385.7,0.0266854]
[1725998392986,2.316,2386.1,2385.7,0.0266854]
[1725998393187,0.10478957,2386.0,2385.7,0.0266854]
[1725998398514,2.4009,2385.9,2385.7,0.0266854]
[1725998398820,10.65747377,2385.8,2385.7,0.0266854]
[1725998399024,14.84893377,2385.8,2385.7,0.0266854]
[1725998399522,17.84893377,2385.8,2385.7,0.0266854]
[1725998400208,17.83876377,2385.8,2385.7,0.0266854]
[1725998401437,5.50571049,2385.8,2385.7,0.0266854]
[1725998401752,2.50571049,2385.8,2385.7,0.0266854]
[1725998402450,0.10481065,2385.9,2385.7,0.0281854]
[1725998402758,2.2747,2386.1,2385.7,0.0281854]
[1725998402759,0.1047914,2386.0,2385.7,0.0281854]
[1725998404717,14.83822328,2385.8,2385.7,0.0281854]
[1725998404918,6.45530328,2385.8,2385.7,0.0281854]
[1725998405116,13.75158321,2385.8,2385.7,0.0281854]
[1725998405362,5.59981993,2385.8,2385.7,0.0281854]
[1725998405722,2.59981993,2385.8,2385.7,0.0281854]
[1725998406123,14.83822328,2385.8,2385.7,0.0281854]
[1725998406319,22.02968328,2385.8,2385.7,0.0281854]
[1725998407834,22.02968328,2385.8,2385.7,0.0333854]
[1725998408344,22.94054825,2385.8,2385.7,0.0333854]
[1725998409294,22.94054825,2385.8,2385.2,0.0266854]
[1725998409295,10.75998,2385.3,2385.2,0.0266854]
[1725998409449,9.56764,2385.3,2385.2,0.0266854]
[1725998409832,5.3753,2385.3,2385.2,0.0266854]
[1725998410274,2.3753,2385.3,2385.2,0.0266854]
[1725998410444,2.48013214,2385.3,2385.2,0.0266854]
[1725998410888,0.10483214,2385.3,2385.2,0.0266854]
[1725998411175,4.1923,2385.4,2385.2,0.0266854]
[1725998411339,10.8648221,2385.3,2385.2,0.0266854]
[1725998411733,9.6724821,2385.3,2385.2,0.0266854]
[1725998412436,5.4801421,2385.3,2385.2,0.0266854]
[1725998412950,9.6724821,2385.3,2385.2,0.0266854]
[1725998413149,5.4801421,2385.3,2385.2,0.0266854]
[1725998413658,9.6724821,2385.3,2385.2,0.0266854]
[1725998414036,5.4801421,2385.3,2385.2,0.0266854]
[1725998414436,3.10483218,2385.5,2385.2,0.0266854]
[1725998414648,0.10483218,2385.5,2385.2,0.0266854]
[1725998414865,4.19234,2385.3,2385.2,0.0266854]
[1725998415066,4.29719071,2385.3,2385.2,0.0266854]
[1725998415468,0.10485071,2385.3,2385.2,0.0266854]
[1725998416937,4.29719071,2385.3,2385.2,0.0266854]
[1725998417142,10.94463071,2385.3,2385.2,0.0266854]
[1725998417371,13.94463071,2385.3,2385.2,0.0266854]
[1725998418616,18.13697071,2385.3,2385.2,0.0266854]
[1725998418765,13.94463071,2385.3,2385.2,0.0266854]
[1725998419381,5.55995071,2385.3,2385.2,0.0266854]
[1725998419774,0.10485071,2385.3,2385.2,0.0266854]
[1725998420066,0.10483352,2385.4,2385.2,0.0266854]
[1725998420659,4.29700352,2385.4,2385.2,0.0266854]
[1725998421182,10.84568,2385.3,2385.2,0.0266854]
[1725998421395,13.84568,2385.3,2385.2,0.0266854]
[1725998422048,18.03802,2385.3,2385.2,0.0266854]
[1725998422508,13.84568,2385.3,2385.2,0.0266854]
[1725998423836,18.03802,2385.3,2385.2,0.0266854]
[1725998425211,13.84568,2385.3,2385.2,0.0266854]
[1725998427205,18.03802,2385.3,2385.2,0.0266854]
[1725998427757,8.38644,2384.8,2384.7,0.0266854]
[1725998427962,15.62580825,2384.8,2384.7,0.0266854]
[1725998428260,18.62580825,2384.8,2384.7,0.0266854]
[1725998430564,14.43258825,2384.8,2384.7,0.0266854]
[1725998431593,18.62580825,2384.8,2384.7,0.0266854]
[1725998434278,17.71481444,2384.8,2384.7,0.0266854]
[1725998434576,13.52159444,2384.8,2384.7,0.0266854]
[1725998434780,3.96017444,2384.8,2384.7,0.0266854]
[1725998434942,0.10486396,2384.8,2384.7,0.0266854]
[1725998435887,0.10486396,2384.8,2384.7,0.26411394]
[1725998436041,0.10484735,2384.9,2384.7,0.26411394]
[1725998436390,0.10484735,2384.9,2384.7,0.0266854]
[1725998436740,0.10484317,2385.3,2384.7,0.0266854]
[1725998437521,0.10484014,2385.2,2384.7,0.0266854]
[1725998438204,0.10484014,2385.2,2384.7,0.26411394]
[1725998438583,0.10484014,2385.2,2384.7,0.0266854]
[1725998438982,10.94002014,2385.2,2384.7,0.0266854]
[1725998439218,3.0,2385.1,2384.7,0.0266854]
[1725998439517,4.29779038,2385.0,2384.7,0.0266854]
[1725998439724,3.0,2384.9,2384.7,0.0266854]
[1725998440038,15.77244346,2384.8,2384.7,0.0266854]
[1725998440321,14.57922346,2384.8,2384.7,0.0266854]
[1725998440507,20.08968201,2384.8,2384.7,0.0266854]
[1725998440815,24.61712736,2384.8,2384.7,0.0266854]
[1725998441250,24.17572091,2384.8,2384.7,0.0266854]
[1725998441417,24.61712736,2384.8,2384.7,0.0266854]
[1725998441793,24.17586235,2384.8,2384.7,0.0266854]
[1725998442115,24.61712736,2384.8,2384.7,0.0266854]
[1725998444962,25.05345256,2384.8,2384.7,0.0266854]
[1725998445153,24.6150247,2384.8,2384.7,0.0266854]
[1725998445323,22.86080929,2384.8,2384.7,0.0266854]
[1725998445645,25.05345256,2384.8,2384.7,0.0266854]
[1725998445949,22.86080929,2384.8,2384.7,0.0266854]
[1725998446109,24.61501372,2384.8,2384.7,0.0266854]
[1725998446745,24.61490683,2384.8,2384.7,0.0266854]
[1725998447330,22.86080929,2384.8,2384.7,0.0266854]
[1725998447548,25.05345256,2384.8,2384.7,0.0266854]
[1725998447948,22.86080929,2384.8,2384.7,0.0266854]
[1725998448265,24.17625409,2384.8,2384.7,0.0266854]
[1725998448427,24.61488224,2384.8,2384.7,0.0266854]
[1725998448629,25.05334982,2384.8,2384.7,0.0266854]
[1725998449640,22.86080929,2384.8,2384.7,0.0266854]
[1725998451126,25.49185793,2384.8,2384.7,0.0266854]
[1725998451328,22.86080929,2384.8,2384.7,0.0266854]
[1725998451567,25.05617968,2384.8,2384.7,0.0266854]
[1725998452130,22.86080929,2384.8,2384.7,0.0266854]
[1725998454089,25.49531319,2384.8,2384.7,0.0266854]
[1725998454889,22.86080929,2384.8,2384.7,0.0266854]
[1725998456228,21.95059296,2384.8,2384.7,0.0266854]
[1725998456436,7.19322,2384.8,2384.7,0.0266854]
[1725998456642,14.20860444,2384.8,2384.7,0.0266854]
[1725998456794,1.86113148,2384.8,2384.7,0.0266854]
[1725998456997,1.86113148,2384.8,2384.7,0.26796394]
[1725998456998,0.10485531,2384.8,2384.7,0.26796394]
[1725998457452,6.38778522,2385.3,2384.7,0.26796394]
[1725998457453,1.31716637,2385.3,2384.8,2.3004]
[1725998457732,1.75627617,2385.4,2385.0,2.3004]
[1725998457733,0.10481537,2385.4,2385.0,2.3004]
[1725998457940,0.10481537,2385.4,2385.2,2.3004]
[1725998459246,7.59481722,2385.6,2385.2,2.3004]
[1725998459449,7.49,2385.6,2385.4,2.3978]
[1725998459746,0.10479563,2385.7,2385.5,0.29478]
[1725998459896,0.1048017,2386.0,2385.5,0.29478]
[1725998460097,0.1048017,2386.0,2385.4,2.3978]
[1725998460398,0.1048017,2386.0,2385.6,2.4097]
[1725998460608,4.1905,2386.4,2385.6,2.4097]
[1725998460609,0.10479744,2386.3,2385.6,2.4097]
[1725998460801,0.10479744,2386.3,2385.7,2.9597]
[1725998461029,0.10479744,2386.3,2385.8,0.29597]
[1725998461299,0.1047971,2386.2,2385.7,2.4097]
[1725998461617,4.19095,2386.1,2385.7,2.4097]
[1725998461812,0.10479851,2386.0,2384.7,3.0266854]
[1725998462032,3.10479851,2386.0,2384.9,2.4247]
[1725998462219,0.10479851,2386.0,2385.1,2.4247]
[1725998462415,3.0,2385.9,2385.2,0.55]
[1725998462743,0.10480797,2385.8,2385.2,0.55]
[1725998463298,0.10480797,2385.8,2385.2,0.84747]
[1725998463500,0.104808,2386.0,2385.2,0.84747]
[1725998465309,4.296018,2386.0,2385.2,0.84747]
[1725998465507,3.0,2385.9,2385.2,0.55]
[1725998465713,0.10481487,2385.8,2385.2,0.55]
[1725998466153,0.10481487,2385.8,2385.3,2.4638]
[1725998467046,0.10481487,2385.8,2385.4,0.55]
[1725998468225,0.10481487,2385.8,2385.3,2.4638]
[1725998470241,0.10481487,2385.8,2385.3,2.71018]
[1725998470457,7.5166854,2386.6,2385.5,2.3934]
[1725998470758,0.10477985,2386.5,2385.7,2.3934]
[1725998470954,0.10477985,2386.5,2385.9,2.3934]
[1725998471323,0.10477985,2386.5,2386.0,0.55]
[1725998471528,0.10477985,2386.5,2386.1,0.29434]
[1725998471838,0.10477985,2386.5,2386.3,2.3934]
[1725998472026,0.0266854,2386.6,2386.3,2.3934]
[1725998473532,0.0266854,2386.6,2386.4,0.55]
[1725998474045,0.0266854,2386.6,2386.5,2.51660414]
[1725998474355,0.0266854,2386.6,2386.5,3.37326455]
[1725998474947,0.0266854,2387.1,2386.5,0.94046455]
[1725998475145,0.0266854,2387.1,2386.6,3.0174]
[1725998475354,0.0266854,2387.1,2386.7,2.4674]
[1725998475557,0.0266854,2387.1,2386.2,2.4674]
[1725998475740,4.18952,2387.0,2386.2,2.4674]
[1725998475945,4.29440927,2386.9,2386.2,2.4674]
[1725998476178,4.18974,2386.8,2385.4,7.38]
[1725998476382,4.29440927,2386.9,2385.6,2.3708]
[1725998476585,0.10477406,2386.7,2385.6,2.3708]
[1725998476876,2.4736,2386.6,2385.6,2.3708]
[1725998477030,4.2950399,2386.5,2385.6,2.3708]
[1725998477229,4.1906,2386.3,2385.6,2.3708]
[1725998477430,7.19052,2386.4,2385.6,2.3708]
[1725998477664,0.10479635,2386.3,2385.6,2.3708]
[1725998480482,0.10479635,2386.3,2385.7,0.55]
[1725998480677,0.10479635,2386.3,2385.8,0.29208]
[1725998484294,0.10478488,2386.4,2385.9,2.4685]
[1725998484585,0.10478488,2386.4,2386.0,0.55]
[1725998484738,0.10478488,2386.4,2385.9,2.4685]
[1725998484942,0.10478488,2386.4,2385.2,4.89438416]
[1725998484943,4.19061,2386.3,2385.6,2.4685]
[1725998485139,0.10479191,2386.2,2385.6,2.4685]
[1725998486588,0.10478704,2386.3,2385.7,0.55]
[1725998486880,0.10478704,2386.3,2385.7,0.79685]
[1725998487457,0.10478214,2386.5,2385.7,0.79685]
[1725998488277,0.10478214,2386.5,2385.6,2.4685]
[1725998488278,4.19088,2386.2,2385.6,2.4685]
[1725998488447,0.10479739,2386.1,2385.6,2.46760582]
[1725998488788,3.10479739,2386.1,2385.6,2.46760582]
[1725998489002,0.10479739,2386.1,2385.6,2.7143664]
[1725998490717,3.0,2386.3,2385.7,0.08383343]
[1725998490718,3.10479179,2386.3,2385.7,0.08383343]
[1725998490877,0.10479179,2386.2,2385.8,0.55]
[1725998491495,0.10479179,2386.2,2385.9,2.4522]
[1725998491900,0.10478438,2386.4,2385.9,2.4522]
[1725998493020,4.19084,2386.2,2385.6,2.4522]
[1725998493320,7.29574579,2386.1,2385.3,2.4522]
[1725998494418,7.29574579,2386.1,2385.4,0.55]
[1725998495116,11.48685579,2386.1,2385.4,0.55]
[1725998495329,7.29574579,2386.1,2385.4,0.55]
[1725998496019,7.29574579,2386.1,2385.4,0.8839936]
[1725998496590,3.10479579,2386.1,2385.4,0.8839936]